bitfinex/quotes_SOLUSD_20240816
["timestamp","ask_amount","ask_price","bid_price","bid_amount"]
[1723831497554,7.45625945,140.43,140.28,6.0626]
[1723831498058,7.45625945,140.43,140.28,13.1909]
[1723831498221,7.45625945,140.43,140.29,7.1276]
[1723831498423,7.45625945,140.43,140.3,52.1275]
[1723831498650,7.45625945,140.43,140.3,7.1275]
[1723831498868,7.45625945,140.43,140.31,45.0]
[1723831499260,7.45625945,140.43,140.3,45.0]
[1723831499635,7.45625945,140.43,140.3,52.1275]
[1723831500152,7.45625945,140.43,140.3,45.0]
[1723831500333,7.45625945,140.43,140.3,52.1274]
[1723831500529,7.45625945,140.43,140.3,45.0]
[1723831500764,7.45625945,140.43,140.32,7.1265]
[1723831500951,15.0753,140.44,140.33,45.0]
[1723831501155,15.0753,140.44,140.34,0.55605637]
[1723831501369,20.0,140.43,140.34,0.55605637]
[1723831501573,20.0,140.43,140.33,0.55732591]
[1723831501782,6.1535,140.5,140.33,0.55732591]
[1723831501783,21.6497,140.5,140.33,0.55732591]
[1723831501953,21.6497,140.5,140.35,17.8118]
[1723831502177,21.6497,140.5,140.36,45.55720678]
[1723831502473,15.4962,140.5,140.39,7.1227]
[1723831502649,29.1572703,140.56,140.41,7.1219]
[1723831502850,29.1572703,140.56,140.4,45.55704803]
[1723831502851,21.7067,140.56,140.42,0.55696868]
[1723831503152,15.4962,140.56,140.4,45.0]
[1723831503385,37.1459,140.56,140.46,7.1193]
[1723831503595,21.6497,140.56,140.47,52.1188]
[1723831503884,16.3699463,140.62,140.47,45.0]
[1723831503885,2.80709079,140.59,140.47,45.0]
[1723831504196,16.3699463,140.62,140.47,45.0]
[1723831504485,16.3699463,140.62,140.46,45.0]
[1723831505451,19.24313232,140.62,140.47,7.1185]
[1723831505748,19.24313232,140.62,140.48,45.0]
[1723831506364,19.24313232,140.62,140.48,52.1183]
[1723831506552,19.24313232,140.62,140.47,45.0]
[1723831506784,19.24313232,140.62,140.43,17.8021]
[1723831507262,19.24313232,140.62,140.46,7.1193]
[1723831507584,19.24313232,140.62,140.47,7.1188]
[1723831508287,19.24313232,140.62,140.48,52.1184]
[1723831508789,19.24313232,140.62,140.42,17.8033]
[1723831509010,20.0,140.61,140.42,17.8033]
[1723831509164,45.0,140.6,140.39,24.9299]
[1723831509499,20.0,140.59,140.4,7.1223]
[1723831509697,20.0,140.59,140.36,24.935]
[1723831509858,6.001,140.56,140.36,24.935]
[1723831510053,6.001,140.56,140.33,24.2582]
[1723831510054,20.0,140.55,140.33,24.2582]
[1723831510279,45.0,140.54,140.33,24.2582]
[1723831510486,15.9115,140.52,140.33,6.4437]
[1723831510691,20.0,140.51,140.33,6.4437]
[1723831511502,15.9115,140.49,140.28,6.4437]
[1723831511792,20.0,140.48,140.28,6.4437]
[1723831511955,45.0,140.47,140.28,6.4437]
[1723831512159,20.0,140.46,140.28,6.4437]
[1723831512894,15.9115,140.49,140.28,6.4437]
[1723831512895,20.0,140.48,140.28,6.4437]
[1723831513105,15.9115,140.49,140.32,61.65]
[1723831513306,15.9115,140.49,140.39,24.9291]
[1723831513462,15.9115,140.49,140.39,17.8066]
[1723831513665,15.9115,140.49,140.36,17.8109]
[1723831513883,15.9115,140.49,140.38,19.23148297]
[1723831514084,15.9115,140.49,140.39,45.0]
[1723831514305,7.44866275,140.58,140.4,6.2406]
[1723831514514,38.1302,140.65,140.41,62.8045]
[1723831514814,16.5418,140.59,140.41,62.8045]
[1723831515030,6.0304,140.58,140.41,45.0]
[1723831515187,6.0304,140.58,140.4,45.0]
[1723831515816,65.0,140.57,140.4,45.0]
[1723831516004,65.0,140.57,140.35,17.8122]
[1723831516192,65.0,140.57,140.35,19.23593174]
[1723831516730,15.5721,140.56,140.37,7.1239]
[1723831516890,20.0,140.55,140.36,7.1244]
[1723831517093,20.0,140.55,140.42,7.1214]
[1723831517304,20.0,140.55,140.43,0.45433811]
[1723831517572,15.5721,140.56,140.4,24.9274]
[1723831517695,15.5721,140.56,140.38,7.1234]
[1723831517998,18.58442234,140.56,140.39,7.1229]
[1723831518189,18.58442234,140.56,140.4,46.42357247]
[1723831518398,18.58442234,140.56,140.4,45.0]
[1723831518828,18.58442234,140.56,140.37,24.9618]
[1723831518829,20.0,140.55,140.37,24.9337]
[1723831519046,20.0,140.55,140.35,7.152]
[1723831519338,20.0,140.55,140.36,17.8104]
[1723831519640,20.0,140.55,140.35,35.6244]
[1723831519805,20.0,140.55,140.38,24.9313]
[1723831520007,20.0,140.55,140.38,24.9312]
[1723831520337,20.0,140.55,140.38,17.8079]
[1723831520705,20.0,140.55,140.36,7.1241]
[1723831520920,20.0,140.55,140.37,17.8092]
[1723831521119,20.0,140.55,140.38,7.1234]
[1723831522136,20.0,140.55,140.39,45.0]
[1723831522642,20.0,140.55,140.37,68.802]
[1723831522643,20.0,140.55,140.41,24.9258]
[1723831522833,20.0,140.55,140.42,45.80868677]
[1723831523040,20.0,140.55,140.43,0.80915698]
[1723831523216,20.0,140.55,140.42,45.0]
[1723831524024,20.0,140.55,140.4,1.42319111]
[1723831524253,20.0,140.55,140.38,24.9317]
[1723831524454,20.0,140.55,140.39,1.42288698]
[1723831524662,20.0,140.55,140.34,85.5663]
[1723831524965,20.0,140.55,140.38,7.1235]
[1723831525174,27.44911259,140.55,140.39,1.42375017]
[1723831525347,20.0,140.55,140.39,1.42375017]
[1723831525536,20.0,140.55,140.4,1.42375106]
[1723831525965,20.0,140.55,140.4,8.54585106]
[1723831526277,20.0,140.55,140.41,7.1219]
[1723831526451,20.0,140.55,140.42,1.42335234]
[1723831526760,20.0,140.55,140.42,53.54465234]
[1723831526932,15.5721,140.56,140.44,7.1204]
[1723831527133,15.5721,140.56,140.45,45.0]
[1723831527362,15.5721,140.56,140.42,69.9239]
[1723831527532,15.5721,140.56,140.43,7.1208]
[1723831527734,15.5721,140.56,140.44,45.0]
[1723831528239,15.5721,140.56,140.43,45.0]
[1723831528856,18.34749915,140.56,140.43,45.0]
[1723831529362,20.0,140.55,140.43,45.0]
[1723831529543,20.0,140.55,140.39,24.9303]
[1723831530130,20.0,140.55,140.39,17.8074]
[1723831530332,20.0,140.55,140.41,17.8043]
[1723831530672,20.0,140.55,140.41,24.9262]
[1723831531164,20.0,140.55,140.42,45.0]
[1723831531371,18.34749915,140.56,140.43,17.8015]
[1723831531372,15.5721,140.56,140.43,17.8015]
[1723831531534,15.5721,140.56,140.42,45.0]
[1723831531535,15.5721,140.56,140.46,7.1193]
[1723831531878,15.5721,140.56,140.47,45.0]
[1723831532235,15.5721,140.56,140.46,45.0]
[1723831532959,15.5721,140.56,140.46,52.119]
[1723831533156,15.5721,140.56,140.47,7.1188]
[1723831533472,15.5721,140.56,140.48,45.0]
[1723831533859,15.5721,140.56,140.5,17.7929]
[1723831534175,15.9626,140.61,140.51,52.1167]
[1723831534673,15.9626,140.61,140.52,0.37093211]
[1723831535074,15.9626,140.61,140.51,45.0]
[1723831535275,15.9626,140.61,140.38,6.2066]
[1723831535487,15.9626,140.61,140.43,17.8018]
[1723831535647,20.0,140.6,140.45,7.1195]
[1723831536234,20.0,140.6,140.43,24.9223]
[1723831536776,20.0,140.6,140.44,7.1201]
[1723831536979,20.0,140.6,140.43,17.8018]
[1723831537165,20.0,140.6,140.42,22.17184745]
[1723831537166,21.4921,140.59,140.42,15.05084745]
[1723831537370,20.0,140.58,140.42,32.85374745]
[1723831538777,20.0,140.58,140.43,45.0]
[1723831539093,20.0,140.58,140.44,7.12]
[1723831539292,20.0,140.58,140.45,45.0]
[1723831539598,20.0,140.58,140.43,45.0]
[1723831540304,20.0,140.58,140.42,15.05084745]
[1723831540509,22.79900362,140.58,140.42,15.05084745]
[1723831540662,22.79900362,140.58,140.44,7.1202]
[1723831540989,22.79900362,140.58,140.43,24.9227]
[1723831541185,20.0,140.58,140.43,24.9227]
[1723831541494,20.0,140.58,140.45,17.7993]
[1723831541708,20.0,140.58,140.46,45.0]
[1723831543077,22.96985704,140.58,140.46,45.0]
[1723831543807,22.96985704,140.58,140.42,32.85424745]
[1723831544047,22.96985704,140.58,140.43,1.42293829]
[1723831544198,22.96985704,140.58,140.42,32.85424745]
[1723831544532,22.96985704,140.58,140.43,7.1208]
[1723831544745,22.96985704,140.58,140.42,39.97554745]
[1723831545237,22.96985704,140.58,140.42,15.05084745]
[1723831545435,15.2685,140.57,140.42,15.05084745]
[1723831545736,15.1098,140.53,140.42,15.05084745]
[1723831545954,20.0,140.52,140.42,15.05084745]
[1723831547110,20.0,140.52,140.43,45.0]
[1723831547425,15.1098,140.53,140.43,69.9223]
[1723831547645,15.1098,140.53,140.43,62.8015]
[1723831547850,15.1098,140.53,140.43,45.0]
[1723831548351,15.1098,140.53,140.44,24.9204]
[1723831548714,15.1098,140.53,140.45,45.0]
[1723831549144,15.1098,140.53,140.44,45.0]
[1723831549307,15.1098,140.53,140.43,17.8015]
[1723831549907,15.1098,140.53,140.43,24.922]
[1723831550306,15.1098,140.53,140.43,17.8015]
[1723831550539,15.1098,140.53,140.44,1.42297857]
[1723831550745,15.1098,140.53,140.44,45.0]
[1723831550915,15.1098,140.53,140.43,45.0]
[1723831551452,15.1098,140.53,140.47,7.1189]
[1723831551737,15.1098,140.53,140.48,45.0]
[1723831553534,15.1098,140.53,140.51,7.1165]
[1723831553716,22.0355,140.59,140.52,45.0]
[1723831554123,22.0355,140.59,140.51,52.1169]
[1723831554326,22.0355,140.59,140.51,45.0]
[1723831556007,22.0355,140.59,140.46,17.7985]
[1723831556210,20.0,140.58,140.46,24.9179]
[1723831556823,20.0,140.58,140.43,17.8023]
[1723831557038,20.0,140.58,140.39,6.2578]
[1723831557241,20.0,140.58,140.38,7.444167]
[1723831557242,16.2859,140.56,140.38,7.444167]
[1723831557509,16.2859,140.54,140.37,7.1239]
[1723831557854,20.0,140.53,140.36,24.9347]
[1723831558016,16.5194,140.52,140.36,24.9347]
[1723831558214,20.0,140.51,140.36,24.9346]
[1723831558732,20.0,140.51,140.37,7.1239]
[1723831558975,20.0,140.51,140.39,17.8068]
[1723831559285,20.0,140.51,140.43,45.0]
[1723831559495,20.0,140.51,140.43,44.96832546]
[1723831559657,20.0,140.51,140.43,46.39037887]
[1723831559860,20.0,140.51,140.43,44.96832546]
[1723831560180,16.5194,140.52,140.43,44.96832546]
[1723831560390,16.5194,140.52,140.44,1.42160927]
[1723831560551,16.5194,140.52,140.43,44.96832546]
[1723831561184,16.5194,140.52,140.44,1.42319808]
[1723831561372,16.5194,140.52,140.42,15.05084745]
[1723831562261,20.0,140.51,140.42,15.05084745]
[1723831562794,20.0,140.51,140.43,7.1208]
[1723831562956,16.5194,140.52,140.42,39.97484745]
[1723831563276,16.5194,140.52,140.42,32.85344745]
[1723831563473,16.5194,140.52,140.45,7.1198]
[1723831563678,16.5194,140.52,140.46,17.7977]
[1723831563868,16.5194,140.52,140.47,7.1184]
[1723831564188,16.5194,140.52,140.48,45.0]
[1723831564361,16.5194,140.52,140.47,45.0]
[1723831564568,16.5194,140.52,140.47,52.1188]
[1723831564989,16.5194,140.52,140.47,45.0]
[1723831565185,16.5194,140.52,140.47,46.42297555]
[1723831565568,6.66,140.55,140.48,7.118]
[1723831565767,6.66,140.55,140.49,45.0]
[1723831567174,15.6222,140.57,140.49,7.1179]
[1723831567506,15.6222,140.57,140.5,52.1173]
[1723831567803,15.6222,140.57,140.51,45.0]
[1723831567963,15.6222,140.57,140.48,62.7953]
[1723831568163,15.6222,140.57,140.45,17.7994]
[1723831568679,15.6222,140.57,140.46,0.38522608]
[1723831568861,20.0,140.56,140.43,7.1209]
[1723831569062,20.0,140.56,140.42,32.85444745]
[1723831569063,20.0,140.56,140.44,7.1202]
[1723831569299,20.0,140.56,140.42,39.97574745]
[1723831569775,6.2712,140.55,140.42,15.05084745]
[1723831570097,6.2712,140.55,140.43,24.9225]
[1723831570295,20.0,140.54,140.44,7.1202]
[1723831570769,6.2712,140.55,140.42,15.05084745]
[1723831570968,15.4697,140.53,140.42,15.05084745]
[1723831571172,20.0,140.52,140.42,15.05084745]
[1723831571795,22.1133,140.51,140.36,15.6222]
[1723831571997,20.0,140.5,140.36,7.124]
[1723831572308,20.0,140.5,140.35,7.1249]
[1723831572604,20.0,140.5,140.36,8.54656403]
[1723831572963,20.0,140.5,140.36,7.1243]
[1723831573600,20.0,140.5,140.34,32.38852]
[1723831573793,15.7503,140.49,140.34,25.26342]
[1723831574008,20.0,140.48,140.35,1.42361401]
[1723831574215,20.0,140.48,140.34,25.26342]
[1723831574216,16.5577,140.46,140.34,7.44992]
[1723831574512,16.5577,140.44,140.29,3.35711029]
[1723831574819,6.4252,140.41,140.29,3.35711029]
[1723831575198,20.0,140.4,140.29,3.35711029]
[1723831576016,16.4791,140.39,140.29,3.35711029]
[1723831576223,20.0,140.38,140.29,3.35711029]
[1723831576390,6.2069,140.37,140.21,17.83]
[1723831576711,20.0,140.36,140.21,17.83]
[1723831577088,20.0,140.36,140.16,97.1134]
[1723831577089,20.0,140.36,140.24,17.8265]
[1723831577289,6.2069,140.37,140.26,24.9527]
[1723831577598,20.0,140.36,140.21,7.1317]
[1723831577811,20.0,140.36,140.16,97.1134]
[1723831577985,15.4371,140.35,140.2,7.1322]
[1723831578189,20.0,140.34,140.19,17.8327]
[1723831578516,20.0,140.34,140.19,24.9657]
[1723831578886,20.0,140.34,140.16,17.8363]
[1723831578887,6.5254,140.33,140.16,17.8363]
[1723831579101,6.5254,140.33,140.17,7.1337]
[1723831579102,20.0,140.32,140.17,7.1337]
[1723831579291,20.0,140.32,140.13,17.8402]
[1723831579292,21.5983,140.31,140.13,17.8402]
[1723831579502,21.5983,140.31,140.14,7.1356]
[1723831579709,65.0,140.3,140.12,8.0103463]
[1723831579894,65.0,140.3,140.12,0.8737463]
[1723831579895,43.0708,140.27,140.12,0.8737463]
[1723831580109,16.6045,140.25,140.12,0.8737463]
[1723831580407,20.0,140.24,140.12,0.8737463]
[1723831580785,20.0,140.24,140.13,0.58820838]
[1723831580990,20.0,140.24,140.14,7.1356]
[1723831581204,16.6045,140.25,140.14,7.1356]
[1723831581383,16.6045,140.25,140.15,1.42592667]
[1723831581585,16.6045,140.25,140.12,18.7145463]
[1723831581822,20.0,140.24,140.13,45.0]
[1723831581993,20.0,140.24,140.13,53.06229376]
[1723831582192,20.0,140.24,140.14,7.1356]
[1723831582392,16.6045,140.25,140.15,45.0]
[1723831583114,16.6045,140.25,140.12,8.0100463]
[1723831583326,20.0,140.24,140.13,7.1362]
[1723831584190,20.0,140.24,140.12,0.8737463]
[1723831585596,20.0,140.24,140.15,7.135]
[1723831585891,16.6045,140.25,140.16,18.42227697]
[1723831586110,16.6045,140.25,140.16,17.8359]
[1723831586486,16.6045,140.25,140.13,17.8402]
[1723831586690,16.6045,140.25,140.14,45.0]
[1723831587199,20.0,140.24,140.14,45.0]
[1723831587403,20.0,140.24,140.12,0.8737463]
[1723831588992,16.6045,140.25,140.12,0.8737463]
[1723831589199,20.0,140.24,140.12,0.8737463]
[1723831589813,20.0,140.24,140.12,45.8737463]
[1723831590018,20.0,140.24,140.12,0.8737463]
[1723831591110,20.0,140.24,140.12,45.8737463]
[1723831591486,16.6045,140.25,140.12,45.8737463]
[1723831591694,16.6045,140.25,140.16,17.8359]
[1723831591888,16.6045,140.25,140.19,17.8328]
[1723831592116,16.6045,140.25,140.2,45.0]
[1723831592498,21.4399,140.31,140.2,52.1326]
[1723831592738,21.4399,140.31,140.21,1.42177131]
[1723831593003,21.4399,140.31,140.21,8.55377131]
[1723831593307,21.4399,140.31,140.2,45.0]
[1723831593623,21.4399,140.31,140.21,1.42576073]
[1723831593803,21.4399,140.31,140.2,62.8311]
[1723831594127,21.4399,140.31,140.2,45.0]
[1723831594308,21.4399,140.31,140.24,7.1302]
[1723831594490,21.4399,140.31,140.25,45.39605999]
[1723831595139,21.4399,140.31,140.25,52.52605999]
[1723831595320,23.0382,140.36,140.25,45.39605999]
[1723831595695,7.45678417,140.42,140.31,7.1266]
[1723831595999,20.0,140.52,140.32,52.1261]
[1723831596000,23.0382,140.41,140.32,52.1261]
[1723831596333,23.0382,140.41,140.33,1.42428663]
[1723831596493,23.0382,140.41,140.32,45.0]
[1723831597107,20.0,140.4,140.28,7.1285]
[1723831597424,20.0,140.4,140.27,7.1289]
[1723831597594,20.0,140.4,140.28,45.0]
[1723831597991,20.0,140.4,140.27,45.0]
[1723831598225,20.0,140.4,140.25,7.13]
[1723831598397,20.0,140.4,140.21,62.2059]
[1723831598598,20.0,140.4,140.27,7.1287]
[1723831598812,23.0382,140.41,140.31,7.1266]
[1723831599223,23.0382,140.41,140.32,7.1265]
[1723831599436,23.0382,140.41,140.3,7.1275]
[1723831599744,23.0382,140.41,140.26,20.0]
[1723831599745,23.0382,140.41,140.33,7.126]
[1723831599913,23.0382,140.41,140.34,45.0]
[1723831600535,23.0382,140.41,140.33,45.0]
[1723831600833,23.0382,140.41,140.34,0.58556461]
[1723831601043,23.0382,140.41,140.34,7.71066461]
[1723831601212,23.0382,140.41,140.35,45.0]
[1723831601410,23.0382,140.41,140.36,0.58548117]
[1723831602240,23.0382,140.41,140.35,52.1249]
[1723831603015,23.0382,140.41,140.35,45.0]
[1723831603527,23.0382,140.41,140.3,17.8182]
[1723831603711,23.0382,140.41,140.31,7.1269]
[1723831604128,23.0382,140.41,140.27,17.822]
[1723831604535,20.0,140.4,140.27,17.822]
[1723831604853,20.0,140.4,140.29,7.128]
[1723831605248,20.0,140.4,140.27,17.822]
[1723831605632,20.0,140.4,140.27,24.9509]
[1723831605827,20.0,140.4,140.28,7.1285]
[1723831606062,20.0,140.4,140.29,17.8194]
[1723831606635,20.0,140.4,140.3,45.0]
[1723831607067,20.0,140.4,140.3,52.1275]
[1723831607659,20.0,140.4,140.3,45.0]
[1723831607861,23.0382,140.41,140.31,7.1269]
[1723831608161,23.0382,140.41,140.32,45.0]
[1723831608363,23.0382,140.41,140.34,7.1254]
[1723831608660,23.0382,140.41,140.35,45.0]
[1723831609226,23.0382,140.41,140.34,45.0]
[1723831610044,23.0382,140.41,140.3,17.8181]
[1723831610366,23.0382,140.41,140.32,7.1265]
[1723831610743,23.0382,140.41,140.31,7.1269]
[1723831611144,23.0382,140.41,140.32,17.8151]
[1723831611334,23.0382,140.41,140.33,52.126]
[1723831611961,23.0382,140.41,140.33,45.0]
[1723831612868,23.0382,140.41,140.24,35.652]
[1723831613083,20.0,140.4,140.26,17.8234]
[1723831613366,20.0,140.4,140.24,35.652]
[1723831613864,20.0,140.4,140.22,7.45235284]
[1723831614163,20.0,140.4,140.26,7.1295]
[1723831614589,20.0,140.4,140.28,17.8211]
[1723831614733,20.0,140.4,140.31,7.127]
[1723831614935,23.0382,140.41,140.31,7.127]
[1723831615167,23.0382,140.41,140.32,17.8159]
[1723831615335,23.0382,140.41,140.35,7.1247]
[1723831615539,23.0382,140.41,140.36,0.38616856]
[1723831615943,23.0382,140.41,140.36,45.38616856]
[1723831616141,23.0382,140.41,140.36,0.38616856]
[1723831616448,6.2465,140.46,140.37,45.0]
[1723831616663,6.2465,140.46,140.37,7.55216542]
[1723831616966,6.2465,140.46,140.38,45.0]
[1723831617168,6.2465,140.46,140.35,69.9366]
[1723831617338,6.2465,140.46,140.36,7.1245]
[1723831617539,6.2465,140.46,140.37,45.0]
[1723831618543,6.2465,140.46,140.37,62.8088]
[1723831619242,6.2465,140.46,140.37,45.0]
[1723831619590,6.2465,140.46,140.36,7.1242]
[1723831619871,6.2465,140.46,140.35,17.8118]
[1723831620073,6.2465,140.46,140.33,7.1259]
[1723831620241,6.2465,140.46,140.32,17.8158]
[1723831620242,20.0,140.45,140.32,17.8158]
[1723831620442,20.0,140.45,140.35,7.125]
[1723831620971,20.0,140.45,140.36,45.0]
[1723831621148,20.0,140.45,140.35,52.125]
[1723831621364,20.0,140.45,140.35,45.0]
[1723831621750,20.0,140.45,140.34,45.0]
[1723831621949,15.854,140.44,140.31,17.8173]
[1723831622258,15.854,140.44,140.28,97.1227]
[1723831622259,15.854,140.44,140.28,17.8208]
[1723831622444,15.854,140.42,140.28,17.8208]
[1723831622642,20.0,140.41,140.25,17.8246]
[1723831622871,6.4801,140.4,140.25,17.8246]
[1723831623057,20.0,140.39,140.25,17.8246]
[1723831623264,15.8328,140.38,140.25,17.8246]
[1723831623473,20.0,140.37,140.23,7.1311]
[1723831623643,6.0843,140.36,140.22,24.9602]
[1723831623845,6.0843,140.34,140.19,7.45665392]
[1723831624062,6.0843,140.34,140.18,17.8329]
[1723831624257,20.0,140.33,140.18,17.8329]
[1723831624458,20.0,140.33,140.17,7.45849957]
[1723831624459,6.0843,140.31,140.17,7.45849957]
[1723831624664,20.0,140.3,140.17,7.45849957]
[1723831625385,20.0,140.3,140.14,17.8381]
[1723831625386,15.8328,140.29,140.14,17.8381]
[1723831625550,15.8328,140.29,140.14,24.9737]
[1723831625551,26.0843,140.28,140.14,24.9737]
[1723831625955,26.0843,140.28,140.14,17.8381]
[1723831626687,26.0843,140.28,140.12,0.8737463]
[1723831626889,61.6353,140.27,140.12,0.8737463]
[1723831627040,16.6353,140.25,140.12,0.8737463]
[1723831627245,20.0,140.24,140.12,0.8737463]
[1723831627744,51.6015,140.23,140.04,17.8508]
[1723831627950,36.4639,140.22,140.04,17.8508]
[1723831628479,36.4639,140.22,140.07,7.1388]
[1723831628846,36.4639,140.22,140.06,24.9881]
[1723831629249,36.4639,140.22,140.06,17.8484]
[1723831629475,6.6015,140.2,139.99,17.8574]
[1723831629658,16.4639,140.19,139.99,17.8574]
[1723831629978,36.4639,140.19,140.0,1.04047196]
[1723831630337,7.1388,140.08,140.01,7.1422]
[1723831630493,7.1398,140.06,140.0,7.1427]
[1723831630779,6.6015,140.09,140.0,7.1427]
[1723831630942,7.1409,140.04,139.99,17.8574]
[1723831631145,7.1403,140.05,139.99,17.8574]
[1723831631365,7.1403,140.05,139.99,25.0006]
[1723831631687,15.8404,140.08,139.99,17.8574]
[1723831631972,15.8404,140.08,140.02,7.1417]
[1723831632171,7.1395,140.07,140.01,24.997]
[1723831632347,15.8404,140.08,140.01,17.8548]
[1723831632542,7.1393,140.07,140.01,17.8548]
[1723831632784,7.1393,140.07,140.01,24.997]
[1723831633467,7.1398,140.06,139.99,7.1429]
[1723831633786,7.1398,140.06,140.0,52.1427]
[1723831633961,15.8404,140.08,140.0,64.28208664]
[1723831634180,15.8404,140.08,140.02,7.1417]
[1723831634475,15.8404,140.08,140.03,45.0]
[1723831634682,17.8395,140.14,140.04,1.4256793]
[1723831634683,15.7824,140.13,140.04,1.4256793]
[1723831634870,6.6141,140.14,140.09,7.138]
[1723831635073,7.1342,140.17,140.1,46.42506872]
[1723831635279,22.916,140.18,140.12,7.1367]
[1723831635486,7.1343,140.17,140.13,45.0]
[1723831635687,7.1343,140.17,140.11,8.56309348]
[1723831635886,7.1343,140.17,140.13,1.42578995]
[1723831636103,7.1343,140.17,140.12,45.0]
[1723831636308,15.7824,140.18,140.12,45.0]
[1723831636602,15.7824,140.18,140.1,17.8432]
[1723831636807,15.7824,140.18,140.13,1.42477738]
[1723831636998,15.7824,140.18,140.13,45.0]
[1723831637577,15.3233,140.23,140.13,45.0]
[1723831637779,7.1316,140.22,140.16,7.1342]
[1723831637994,15.3233,140.23,140.17,45.0]
[1723831638197,15.3233,140.23,140.13,45.0]
[1723831638777,15.3233,140.23,140.13,62.8397]
[1723831638778,7.1325,140.21,140.13,62.8397]
[1723831638978,15.3233,140.23,140.13,62.8397]
[1723831639211,15.3233,140.23,140.17,7.1341]
[1723831639383,7.1331,140.19,140.18,45.0]
[1723831639572,15.3233,140.23,140.14,7.1355]
[1723831639775,15.3233,140.23,140.15,45.0]
[1723831640207,7.133,140.2,140.15,45.0]
[1723831640384,7.1332,140.19,140.15,45.0]
[1723831640583,7.1332,140.19,140.14,45.0]
[1723831640797,7.1332,140.19,140.06,21.42]
[1723831640798,15.3233,140.23,140.06,20.0]
[1723831640998,7.1361,140.14,140.04,61.48]
[1723831641199,7.1361,140.14,140.06,17.849]
[1723831641511,7.1368,140.12,140.06,24.9884]
[1723831641808,7.1367,140.12,140.06,24.9886]
[1723831642308,17.8319,140.2,140.08,17.8462]
[1723831642618,20.0,140.19,140.09,7.1378]
[1723831642916,20.0,140.19,140.09,0.54277591]
[1723831643084,2.90080724,140.22,140.09,45.0]
[1723831643085,22.90080724,140.22,140.09,45.0]
[1723831643277,15.6653,140.2,139.98,0.8737463]
[1723831643486,20.0,140.22,139.99,17.8576]
[1723831643487,17.8432,140.11,139.99,17.8576]
[1723831643909,7.1392,140.08,140.02,7.1418]
[1723831644202,7.1392,140.07,140.01,24.9972]
[1723831644386,7.1398,140.06,140.01,17.855]
[1723831644589,17.8432,140.11,140.01,24.9973]
[1723831644590,7.1394,140.07,140.01,24.9973]
[1723831645011,7.14,140.06,140.01,17.855]
[1723831645215,7.1404,140.05,139.98,25.8764463]
[1723831645380,15.5267,140.08,139.98,0.8737463]
[1723831645584,7.1424,140.01,139.98,0.8737463]
[1723831646526,7.1419,140.02,139.98,0.8737463]
[1723831646713,7.1413,140.03,139.98,0.8737463]
[1723831647018,15.5267,140.08,139.98,0.8737463]
[1723831647019,7.1423,140.01,139.98,0.8737463]
[1723831647179,7.1419,140.02,139.99,1.42752617]
[1723831647381,7.1414,140.03,139.99,1.42752617]
[1723831647586,7.1414,140.03,139.99,1.42772006]
[1723831647781,7.1414,140.03,139.98,0.8737463]
[1723831648296,33.374,140.08,139.98,0.8737463]
[1723831648297,7.1429,140.0,139.98,0.8737463]
[1723831649011,15.5267,140.08,139.98,0.8737463]